bitfinex/quotes_SOLUSD_20251120
["timestamp","ask_amount","ask_price","bid_price","bid_amount"]
[1763638939169,0.2,142.02,142.01,71.30857819]
[1763638939373,0.2,142.02,142.01,14.0389006]
[1763638939592,0.2,142.02,142.01,15.6989006]
[1763638939808,0.88,142.02,142.01,2.81799288]
[1763638939984,0.88,142.02,141.97,76.84624723]
[1763638939985,0.88,142.02,142.0,4.1791501]
[1763638940170,7.24126179,142.02,142.01,1.66]
[1763638940769,7.91126179,142.02,142.01,1.66]
[1763638941296,0.2,142.02,142.01,5.8391501]
[1763638941487,0.87,142.02,142.01,5.8391501]
[1763638944190,0.87,142.02,142.01,1.66]
[1763638945787,0.87,142.02,142.01,5.8391501]
[1763638946275,0.87,142.02,142.01,1.66]
[1763638947495,0.87,142.02,142.01,12.88090772]
[1763638947695,0.87,142.02,142.01,1.66]
[1763638947887,0.87,142.02,142.01,5.8391501]
[1763638949401,0.87,142.02,142.01,12.88090772]
[1763638949992,0.87,142.02,142.01,1.66]
[1763638950208,0.87,142.02,142.01,5.8391501]
[1763638951111,0.87,142.02,141.97,62.1]
[1763638951315,0.67,142.01,141.99,4.1791501]
[1763638952704,0.67,142.01,142.0,4.1791501]
[1763638953393,0.2,142.02,142.0,4.1791501]
[1763638953592,0.87,142.02,142.01,5.8391501]
[1763638954309,0.2,142.02,142.01,12.88090772]
[1763638954798,0.2,142.02,142.01,11.37032756]
[1763638955682,0.2,142.02,142.01,11.49032756]
[1763638959195,0.2,142.02,142.01,50.07439501]
[1763638959401,0.2,142.02,142.01,39.40011525]
[1763638961817,0.2,142.02,142.01,89.40011525]
[1763638962205,0.2,142.02,142.01,86.73154531]
[1763638962412,0.2,142.02,142.01,89.40011525]
[1763638962591,0.2,142.02,142.01,100.07439501]
[1763638963313,0.2,142.02,142.01,89.40011525]
[1763638964116,0.2,142.02,142.01,92.21771113]
[1763638964601,0.2,142.02,142.01,102.89199089]
[1763638964785,0.2,142.02,142.01,164.99199089]
[1763638964984,1e-08,142.03,142.01,164.87199089]
[1763638965208,0.2,142.06,142.05,18.12096]
[1763638965422,0.2,142.06,142.05,22.44952994]
[1763638965895,0.2,142.06,142.05,25.26672893]
[1763638966423,0.2,142.06,142.05,25.38672893]
[1763638966798,0.2,142.06,142.05,25.26672893]
[1763638967105,0.2,142.06,142.05,32.42650365]
[1763638967304,0.2,142.06,142.05,92.21533134]
[1763638967522,0.2,142.06,142.05,92.09533134]
[1763638970025,0.2,142.06,142.05,92.21533134]
[1763638970206,0.2,142.06,142.05,92.09533134]
[1763638970807,0.2,142.06,142.05,32.30650365]
[1763638971115,0.2,142.06,142.05,14.18554365]
[1763638971623,0.2,142.06,142.05,32.30650365]
[1763638974223,0.92,142.06,142.05,32.30650365]
[1763638975320,0.2,142.06,142.05,32.30650365]
[1763638975518,0.92,142.06,142.05,32.30650365]
[1763638975936,0.2,142.06,142.05,32.30650365]
[1763638976435,0.92,142.06,142.05,32.30650365]
[1763638977146,0.92,142.06,142.05,4.32856994]
[1763638977643,0.2,142.06,142.05,4.32856994]
[1763638978011,0.2,142.06,142.05,11.36834466]
[1763638978236,0.92,142.06,142.05,11.36834466]
[1763638979840,0.2,142.06,142.05,11.36834466]
[1763638981530,0.2,142.06,142.05,29.48930466]
[1763638982547,0.2,142.06,142.05,91.58930466]
[1763638982747,0.2,142.06,142.05,151.37813235]
[1763638982920,0.2,142.06,142.05,151.49813235]
[1763638983429,0.2,142.06,142.05,151.37813235]
[1763638983643,0.2,142.08,142.06,9.78882769]
[1763638983814,0.2,142.08,142.07,132.23835763]
[1763638984154,2.86856994,142.17,142.07,132.23835763]
[1763638984155,0.72,142.13,142.09,68.12096]
[1763638984323,0.72,142.16,142.12,2.66856994]
[1763638984527,0.72,142.16,142.14,2.66856994]
[1763638984742,0.72,142.16,142.15,1.66]
[1763638985434,0.72,142.16,142.15,4.32856994]
[1763638985761,0.72,142.16,142.15,11.36339231]
[1763638986258,0.72,142.16,142.15,1.66]
[1763638987367,0.72,142.16,142.15,4.32856994]
[1763638987561,0.72,142.16,142.15,11.36339231]
[1763638988776,0.72,142.16,142.13,4.32856994]
[1763638988955,0.72,142.16,142.15,2.66856994]
[1763638990082,0.72,142.16,142.15,9.70339231]
[1763638990599,0.92,142.17,142.15,9.70339231]
[1763638990780,0.2,142.17,142.16,1.66]
[1763638991078,0.2,142.17,142.16,4.32856994]
[1763638991292,0.92,142.17,142.16,4.32856994]
[1763638991858,0.92,142.17,142.16,11.36289745]
[1763638992258,0.2,142.17,142.16,11.36289745]
[1763638993270,0.92,142.17,142.16,4.32856994]
[1763638993472,0.2,142.17,142.16,1.66]
[1763638993767,0.2,142.17,142.16,4.32856994]
[1763638994070,0.2,142.17,142.16,11.36289745]
[1763638997476,0.2,142.17,142.16,4.32856994]
[1763638997977,0.2,142.17,142.16,11.36289745]
[1763638999580,0.92,142.17,142.14,18.12096]
[1763638999770,0.92,142.17,142.16,4.32856994]
[1763638999984,0.2,142.17,142.16,11.36289745]
[1763639001572,0.2,142.17,142.16,12.04289745]
[1763639003682,0.2,142.17,142.16,11.36289745]
[1763639005088,0.88,142.17,142.16,1.66]
[1763639005290,7.91383273,142.17,142.16,1.66]
[1763639005466,0.88,142.17,142.16,1.66]
[1763639005663,0.88,142.17,142.16,4.32856994]
[1763639006574,0.88,142.17,142.16,1.66]
[1763639006781,0.88,142.17,142.16,4.32856994]
[1763639007085,0.88,142.17,142.16,1.66]
[1763639007388,0.88,142.17,142.16,4.32856994]
[1763639007781,0.88,142.17,142.16,1.66]
[1763639007972,0.88,142.17,142.16,4.32856994]
[1763639011193,0.88,142.17,142.16,2.66856994]
[1763639011399,0.88,142.17,142.16,4.32856994]
[1763639015394,7.91399494,142.17,142.12,7.03304824]
[1763639015719,7.03482237,142.15,142.12,8.69304824]
[1763639015900,7.03482237,142.15,142.12,4.32856994]
[1763639016212,0.72,142.14,142.12,4.32856994]
[1763639016819,0.72,142.14,142.12,5.82411858]
[1763639018110,0.72,142.14,142.13,4.16411858]
[1763639019107,0.72,142.16,142.13,4.16411858]
[1763639019317,0.72,142.16,142.15,4.16411858]
[1763639019485,0.72,142.16,142.15,5.82411858]
[1763639020295,0.72,142.16,142.15,1.66]
[1763639020816,0.72,142.16,142.15,5.82411858]
[1763639021183,0.2,142.17,142.15,5.82411858]
[1763639021382,0.2,142.17,142.16,4.16411858]
[1763639021821,0.92,142.17,142.16,4.16411858]
[1763639023415,0.92,142.17,142.15,5.82411858]
[1763639023708,0.72,142.16,142.15,5.82411858]
[1763639023898,0.72,142.16,142.15,1.66]
[1763639026846,7.75432751,142.16,142.15,1.66]
[1763639027139,7.75432751,142.16,142.1,83.85653522]
[1763639027140,7.75432751,142.16,142.14,1.66]
[1763639027343,0.72,142.15,142.14,1.66]
[1763639030411,0.72,142.15,142.14,5.82411858]
[1763639030731,0.9,142.17,142.14,12.85937358]
[1763639030944,0.7,142.16,142.15,4.16411858]
[1763639031530,7.73455841,142.16,142.14,1.66]
[1763639031949,0.7,142.15,142.14,1.66]
[1763639035354,0.7,142.15,142.14,5.82411858]
[1763639035860,7.93402216,142.17,142.14,1.66]
[1763639036032,0.7,142.16,142.14,5.82411858]
[1763639038354,7.73440164,142.16,142.14,1.66]
[1763639038744,0.7,142.15,142.14,1.66]
[1763639040965,7.73482237,142.15,142.14,1.66]
[1763639041266,0.7,142.15,142.14,1.66]
[1763639041678,7.93398786,142.17,142.14,5.82411858]
[1763639042238,7.93398786,142.17,142.14,13.56937678]
[1763639042466,0.7,142.16,142.14,12.85937678]
[1763639042638,0.7,142.16,142.14,1.66]
[1763639042847,0.7,142.16,142.14,5.82411858]
[1763639043844,0.7,142.16,142.14,1.66]
[1763639044044,0.7,142.16,142.14,5.82411858]
[1763639044352,7.73437311,142.16,142.14,5.82411858]
[1763639044764,0.7,142.15,142.14,5.82411858]
[1763639044970,7.03437311,142.16,142.14,5.82411858]
[1763639045357,7.73437311,142.16,142.14,5.82411858]
[1763639047860,0.7,142.16,142.14,5.82411858]
[1763639048050,7.93402681,142.17,142.14,5.82411858]
[1763639048662,0.7,142.16,142.14,5.82411858]
[1763639049374,7.734367,142.16,142.14,5.82411858]
[1763639049682,7.734367,142.16,142.14,1.66]
[1763639049970,7.734367,142.16,142.14,5.82411858]
[1763639050270,0.2,142.17,142.15,4.87411858]
[1763639050478,0.2,142.17,142.16,4.16411858]
[1763639050651,0.2,142.17,142.16,4.87411858]
[1763639051466,0.2,142.17,142.16,4.16411858]
[1763639052775,0.9,142.17,142.16,4.16411858]
[1763639054052,0.9,142.17,142.15,4.16411858]
[1763639054443,0.9,142.17,142.16,1.66]
[1763639054859,7.93396019,142.17,142.15,1.66]
[1763639055145,0.7,142.16,142.15,1.66]
[1763639056479,7.73432751,142.16,142.15,1.66]
[1763639056954,7.73432751,142.16,142.13,4.16411858]
[1763639057270,0.7,142.15,142.11,10.08483227]
[1763639057473,4.86411858,142.15,142.12,1.66]
[1763639057849,0.7,142.14,142.12,1.66]
[1763639058467,7.03581228,142.13,142.12,1.66]
[1763639058868,7.73581228,142.13,142.12,1.66]
[1763639059560,0.7,142.13,142.12,1.66]
[1763639059756,7.73543987,142.14,142.12,5.82411858]
[1763639060475,7.73543987,142.14,142.12,1.66]
[1763639062167,0.66,142.13,142.12,1.66]
[1763639062373,0.66,142.13,142.09,5.92071369]
[1763639062579,4.82411858,142.13,142.09,11.74483227]
[1763639062892,7.03630734,142.12,142.09,11.74483227]
[1763639063058,25.2870757,142.12,142.08,5.82411858]
[1763639063259,0.66,142.11,142.08,6.50411858]
[1763639063658,0.66,142.11,142.04,35.72113265]
[1763639063659,4.16411858,142.09,142.04,4.16411858]
[1763639063882,4.16411858,142.07,142.02,4.16411858]
[1763639064070,4.16411858,142.06,142.01,8.26071369]
[1763639064268,4.16411858,142.06,142.02,4.16411858]
[1763639064479,0.66,142.05,142.02,4.84411858]
[1763639065887,7.69992505,142.05,142.02,4.16411858]
[1763639066387,0.66,142.05,142.03,4.16411858]
[1763639066562,0.66,142.05,142.02,4.84411858]
[1763639066982,7.69944756,142.06,142.03,4.16411858]
[1763639067182,7.03944756,142.06,142.03,4.16411858]
[1763639067396,0.66,142.05,142.02,7.72125279]
[1763639067694,0.66,142.05,142.02,11.88537137]
[1763639070268,7.69984628,142.05,142.02,11.88537137]
[1763639071599,0.71,142.04,142.02,4.16411858]
[1763639072594,0.71,142.05,142.02,11.86531362]
[1763639073506,7.74980938,142.05,142.02,11.86531362]
[1763639073899,7.74980938,142.05,142.02,4.82411858]
[1763639075481,7.74980938,142.05,142.02,0.66]
[1763639075692,7.74980938,142.05,142.02,4.82411858]
[1763639077197,0.71,142.04,142.02,4.16411858]
[1763639077989,7.03980938,142.05,142.02,4.16411858]
[1763639078195,7.74980938,142.05,142.02,4.82411858]
[1763639078783,7.74980938,142.05,142.02,3.3288604]
[1763639079595,7.74980938,142.05,142.01,1.66]
[1763639079596,0.71,142.04,142.01,1.66]
[1763639080731,0.71,142.04,142.01,2.32]
[1763639081303,7.04076603,142.03,142.01,1.66]
[1763639081605,28.53909957,142.06,142.02,3.3288604]
[1763639082097,25.87023917,142.06,142.03,2.6688604]
[1763639082305,7.74927917,142.06,142.03,3.3288604]
[1763639082486,7.03927917,142.06,142.03,3.3288604]
[1763639082693,0.71,142.05,142.03,2.6688604]
[1763639083306,7.75004617,142.05,142.03,2.6688604]
[1763639083889,7.75004617,142.05,142.02,3.3288604]
[1763639084713,7.04004617,142.05,142.03,3.3288604]
[1763639084913,7.04004617,142.05,142.04,1.66]
[1763639086290,7.74927917,142.06,142.04,1.66]
[1763639088177,7.74977472,142.05,142.04,1.66]
[1763639089605,7.03977472,142.05,142.04,1.66]
[1763639090987,7.73977472,142.05,142.04,1.66]
[1763639092687,7.03977472,142.05,142.04,1.66]
[1763639093197,25.85948464,142.08,142.04,12.04910986]
[1763639093394,7.73852464,142.08,142.05,3.3488604]
[1763639094502,17.59278389,142.11,142.07,2.6688604]
[1763639094683,7.03749919,142.1,142.08,2.6688604]
[1763639094885,7.03749919,142.1,142.08,3.3488604]
[1763639096209,7.73749919,142.1,142.08,3.3488604]
[1763639096387,0.7,142.1,142.08,3.3488604]
[1763639097104,0.7,142.1,142.08,2.6688604]
[1763639097708,7.73745381,142.1,142.08,2.6688604]
[1763639100002,7.73630734,142.12,142.08,2.6688604]
[1763639100203,0.7,142.11,142.09,2.6688604]
[1763639100404,35.1744618,142.15,142.1,4.3288604]
[1763639100405,0.7,142.15,142.1,4.3288604]
[1763639100594,0.7,142.14,142.11,2.6688604]
[1763639100799,3.3688604,142.14,142.09,2.6688604]
[1763639101117,3.3688604,142.14,142.09,3.3488604]
[1763639101290,0.7,142.13,142.09,3.3488604]
[1763639102205,7.03630734,142.12,142.09,3.3488604]
[1763639102617,7.73630734,142.12,142.09,3.3488604]
[1763639102801,0.7,142.11,142.08,2.6688604]
[1763639103616,0.7,142.11,142.08,3.3488604]
[1763639103818,0.7,142.11,142.09,2.6688604]
[1763639104199,0.7,142.11,142.08,3.3488604]
[1763639104417,7.03729767,142.1,142.07,2.6688604]
[1763639104719,7.73729767,142.1,142.07,5.0088604]
[1763639105204,0.7,142.1,142.08,2.6688604]
[1763639106303,7.73735215,142.1,142.08,2.6688604]
[1763639106617,10.40621255,142.1,142.05,2.6688604]
[1763639106812,0.7,142.09,142.05,2.6688604]
[1763639107215,0.7,142.09,142.06,2.6688604]
[1763639107519,7.73735215,142.1,142.07,2.6688604]
[1763639107820,7.03735215,142.1,142.07,0.68]
[1763639108009,17.59249605,142.11,142.07,0.68]
[1763639108010,0.7,142.11,142.08,3.3488604]
[1763639108395,7.73707072,142.11,142.08,3.3488604]
[1763639109127,7.73707072,142.11,142.08,0.68]
[1763639109310,0.7,142.1,142.08,2.6688604]
[1763639109699,7.73707072,142.11,142.08,3.3488604]
[1763639110619,7.03707072,142.11,142.08,2.6688604]
[1763639110925,7.73707072,142.11,142.08,3.3488604]
[1763639111633,0.7,142.1,142.08,2.6688604]
[1763639112008,3.3688604,142.1,142.06,2.6688604]
[1763639112216,0.7,142.09,142.06,1.66]
[1763639113438,0.7,142.09,142.06,2.34]
[1763639113748,7.03828828,142.08,142.04,0.68]
[1763639113916,9.70714868,142.08,142.04,2.6688604]
[1763639114235,0.7,142.07,142.04,4.3288604]
[1763639114639,0.7,142.07,142.04,1.66]
[1763639114824,7.73902412,142.07,142.04,5.0088604]
[1763639115232,7.73902412,142.07,142.05,2.6688604]
[1763639115233,7.03902412,142.07,142.05,2.6688604]
[1763639115448,7.03902412,142.07,142.05,3.3488604]
[1763639115935,7.03902412,142.07,142.05,2.6688604]
[1763639116236,7.73902412,142.07,142.05,2.6688604]
[1763639116539,20.96040017,142.12,142.06,3.3488604]
[1763639116834,0.7,142.11,142.07,4.3288604]
[1763639117133,0.7,142.11,142.07,5.0088604]
[1763639117134,7.73680247,142.11,142.07,5.0088604]
[1763639117514,0.7,142.1,142.07,2.34]
[1763639117717,0.7,142.1,142.07,4.3288604]
[1763639118729,0.7,142.1,142.07,1.66]
[1763639118927,7.73773262,142.1,142.07,1.66]
[1763639119118,7.73773262,142.1,142.07,2.34]
[1763639119323,7.73773262,142.1,142.07,5.0088604]
[1763639119831,7.03773262,142.1,142.07,5.0088604]
[1763639120742,18.12096,142.12,142.08,3.3588604]
[1763639120920,7.03581228,142.13,142.09,3.3588604]
[1763639121114,0.66,142.12,142.09,3.3588604]
[1763639121313,0.66,142.12,142.08,2.6688604]
[1763639121514,3.3288604,142.12,142.08,2.6688604]
[1763639122046,0.66,142.11,142.07,4.3288604]
[1763639122352,3.3288604,142.11,142.07,5.0188604]
[1763639122655,0.66,142.1,142.07,5.0188604]
[1763639123429,7.69751618,142.1,142.07,5.0188604]
[1763639123752,7.03751618,142.1,142.07,5.0188604]
[1763639123925,7.69751618,142.1,142.07,5.0188604]
[1763639125453,7.69751618,142.1,142.07,2.35]
[1763639125650,0.66,142.09,142.06,2.6688604]
[1763639125841,0.66,142.09,142.06,4.3288604]
[1763639126044,0.66,142.09,142.06,5.0188604]
[1763639126238,0.66,142.09,142.07,2.6688604]
[1763639127260,7.69796894,142.09,142.07,2.6688604]
[1763639127654,7.03727155,142.11,142.08,3.3588604]
[1763639127960,7.03727155,142.11,142.09,2.6688604]
[1763639128134,7.03727155,142.11,142.09,3.3788604]
[1763639128856,7.03727155,142.11,142.06,1.66]
[1763639129058,0.66,142.11,142.09,2.6688604]
[1763639130860,7.69729224,142.11,142.08,0.71]
[1763639131066,7.69729224,142.11,142.08,2.6688604]
[1763639131561,7.69729224,142.11,142.08,3.3788604]
[1763639134164,0.66,142.1,142.07,2.6688604]
[1763639134351,0.66,142.1,142.06,0.71]
[1763639134352,3.3288604,142.1,142.05,2.6688604]
[1763639134550,2.6688604,142.08,142.03,8.58976675]
[1763639134753,2.6688604,142.08,142.02,22.26020564]
[1763639134754,2.6688604,142.07,142.02,22.26020564]
[1763639135066,2.6688604,142.06,142.02,5.0388604]
[1763639135248,3.3288604,142.06,142.02,5.0388604]
[1763639135446,0.66,142.05,142.02,5.0388604]
[1763639135648,7.69975129,142.06,142.03,0.71]
[1763639137369,10.36861169,142.06,142.03,0.71]
[1763639138687,0.66,142.05,142.02,1.66]
[1763639138857,0.66,142.05,142.02,4.3288604]
[1763639139479,27.30680963,142.06,142.02,4.3288604]
[1763639139682,27.30680963,142.06,142.03,3.3788604]
[1763639139683,7.03975129,142.06,142.03,3.3788604]
[1763639139860,7.69975129,142.06,142.03,3.3788604]
[1763639140261,0.66,142.05,142.02,3.3788604]
[1763639140559,0.66,142.05,142.02,5.0388604]
[1763639140772,7.7001745,142.05,142.02,6.54008415]
[1763639142482,7.0401745,142.05,142.03,4.88008415]
[1763639142864,7.0401745,142.05,142.03,0.71]
[1763639143183,7.7001745,142.05,142.02,5.83008415]
[1763639143364,7.7001745,142.05,142.02,4.88008415]
[1763639143558,7.7001745,142.05,142.02,6.54008415]
[1763639144186,7.70052826,142.04,142.02,1.66]
[1763639144563,7.04052826,142.04,142.02,1.66]
[1763639144772,7.04052826,142.04,142.02,2.37]
[1763639145574,7.04052826,142.04,142.02,6.54008415]
[1763639145885,7.04052826,142.04,142.02,2.37]
[1763639146670,7.69991977,142.05,142.02,6.54008415]
[1763639148493,7.03991977,142.05,142.02,5.83008415]
[1763639148689,7.03991977,142.05,142.03,0.71]
[1763639149176,11.86953961,142.06,142.03,0.71]
[1763639149381,7.69945546,142.06,142.03,4.88008415]
[1763639149564,7.03945546,142.06,142.03,4.88008415]
[1763639149964,7.03945546,142.06,142.04,4.88008415]
[1763639150482,7.72878369,142.07,142.04,4.88008415]
[1763639151780,7.03878369,142.07,142.05,4.84008415]
[1763639152384,7.03878369,142.07,142.05,0.67]
[1763639152582,7.03878369,142.07,142.05,4.84008415]
[1763639153575,24.63458436,142.08,142.05,6.50008415]
[1763639153771,25.32458436,142.08,142.05,6.50008415]
[1763639154983,24.63458436,142.08,142.05,5.83008415]
[1763639155173,7.72905554,142.07,142.05,5.83008415]
[1763639155708,7.72905554,142.07,142.05,1.66]
[1763639155881,4.86008415,142.08,142.05,2.33]
[1763639156079,11.89868379,142.08,142.05,2.33]
[1763639156598,7.72859964,142.08,142.05,6.50008415]
[1763639158597,7.03859964,142.08,142.06,0.67]
[1763639158989,7.03801659,142.09,142.06,0.67]
[1763639159198,7.72801659,142.09,142.06,0.67]
[1763639161604,7.72801659,142.09,142.06,4.84008415]
[1763639161807,7.03751115,142.1,142.07,4.84008415]
[1763639162313,7.72751115,142.1,142.07,4.84008415]
[1763639162477,0.69,142.1,142.08,4.17008415]
[1763639162886,7.72735575,142.1,142.08,4.17008415]
[1763639163085,7.03735575,142.1,142.08,4.84008415]
[1763639163485,7.72735575,142.1,142.08,4.17008415]
[1763639166996,7.03695111,142.11,142.08,11.20832034]
[1763639167205,7.03695111,142.11,142.09,0.67]
[1763639167511,25.84746705,142.12,142.09,0.67]
[1763639167983,18.81096,142.12,142.09,4.84008415]
[1763639168185,11.89540144,142.14,142.1,4.17008415]
[1763639168389,0.69,142.13,142.1,4.84008415]
[1763639168692,7.72531729,142.14,142.11,4.84008415]
[1763639169091,0.69,142.13,142.1,4.84008415]
[1763639169693,7.72531729,142.14,142.11,0.67]
[1763639170395,25.8455042,142.16,142.12,4.17008415]
[1763639170601,7.23397289,142.17,142.13,4.17008415]
[1763639170822,7.23397289,142.17,142.14,4.17008415]
[1763639171113,0.69,142.16,142.13,4.84008415]
[1763639172786,7.72435752,142.16,142.13,11.87576329]
[1763639172982,7.72435752,142.16,142.13,4.84008415]
[1763639173203,0.69,142.15,142.12,0.67]
[1763639173422,7.72435752,142.16,142.13,4.84008415]
[1763639174408,0.69,142.15,142.11,12.86682016]
[1763639174614,0.69,142.15,142.11,13.53682016]
[1763639174824,11.89507869,142.15,142.11,13.53682016]
[1763639174992,4.17008415,142.14,142.11,0.67]
[1763639175196,4.86008415,142.14,142.11,2.33]
[1763639175805,4.17008415,142.14,142.11,2.33]
[1763639176000,11.20571017,142.14,142.11,2.33]
[1763639176200,11.89571017,142.14,142.11,2.33]
[1763639176693,11.89571017,142.14,142.11,6.50008415]
[1763639176694,7.72562602,142.14,142.11,6.50008415]
[1763639177416,0.69,142.13,142.11,1.66]
[1763639177717,0.69,142.13,142.09,11.20772049]
[1763639177919,0.69,142.13,142.1,1.66]
[1763639178121,11.20639149,142.12,142.1,1.66]
[1763639178495,11.20639149,142.12,142.08,4.84008415]
[1763639178496,0.69,142.11,142.08,4.84008415]
[1763639178696,11.20639149,142.12,142.08,12.8681661]
[1763639179006,7.72630734,142.12,142.09,0.67]
[1763639179209,7.72630734,142.12,142.09,4.84008415]
[1763639179713,7.72630734,142.12,142.08,5.83008415]
[1763639179919,0.69,142.11,142.08,13.53826176]
[1763639180822,7.72685384,142.11,142.09,4.17008415]
[1763639181030,7.03685384,142.11,142.09,4.86008415]
[1763639181195,1.66,142.14,142.1,4.86008415]
[1763639181196,7.75573113,142.14,142.1,4.86008415]
[1763639181390,7.03573113,142.14,142.12,4.17008415]
[1763639181594,7.03573113,142.14,142.12,0.69]
[1763639182519,7.75498126,142.15,142.12,4.86008415]
[1763639183108,0.72,142.14,142.12,4.17008415]
[1763639183808,0.72,142.14,142.11,6.52008415]
[1763639184224,7.75548774,142.14,142.11,6.52008415]
[1763639184414,11.92557189,142.14,142.11,1.66]
[1763639184723,4.89008415,142.13,142.09,0.69]
[1763639184923,4.89008415,142.13,142.09,1.66]
[1763639185227,0.72,142.12,142.09,1.66]
[1763639185410,0.72,142.12,142.09,2.35]
[1763639186226,7.03680247,142.11,142.09,1.66]
[1763639186613,7.75680247,142.11,142.09,1.66]
[1763639187209,0.72,142.11,142.09,1.66]
[1763639188021,7.03648958,142.12,142.09,5.83008415]
[1763639188416,7.71648958,142.12,142.09,6.52008415]
[1763639189516,0.68,142.11,142.09,5.83008415]
[1763639189721,0.68,142.11,142.09,1.66]
[1763639189924,0.68,142.11,142.07,5.83008415]
[1763639190229,4.85008415,142.11,142.07,5.83008415]
[1763639190415,7.03729767,142.1,142.07,5.83008415]
[1763639190611,7.71729767,142.1,142.07,6.52008415]
[1763639190828,0.68,142.09,142.05,4.86008415]
[1763639191128,0.68,142.09,142.06,1.66]
[1763639191302,0.68,142.09,142.06,2.35]
[1763639191499,0.68,142.09,142.06,6.52008415]
[1763639192209,7.03729767,142.1,142.07,4.86008415]
[1763639192829,7.03729767,142.1,142.08,4.86008415]
[1763639193516,7.03729767,142.1,142.08,4.17008415]
[1763639193715,7.71729767,142.1,142.08,4.17008415]
[1763639193914,7.03729767,142.1,142.09,0.69]
[1763639194318,7.03729767,142.1,142.08,4.17008415]
[1763639194513,7.03729767,142.1,142.08,4.86008415]
[1763639194826,7.71729767,142.1,142.08,4.17008415]
[1763639195912,7.03680247,142.11,142.08,4.17008415]
[1763639196110,7.71680247,142.11,142.08,4.17008415]
[1763639198026,7.03680247,142.11,142.08,4.17008415]
[1763639198209,0.68,142.1,142.08,4.17008415]
[1763639198626,7.71680247,142.11,142.08,4.17008415]
[1763639199536,4.85008415,142.1,142.06,4.17008415]
[1763639199711,4.85008415,142.1,142.06,6.52008415]
[1763639199912,0.68,142.09,142.07,4.17008415]
[1763639200250,7.03828828,142.08,142.06,6.52008415]
[1763639200614,7.03828828,142.08,142.06,1.66]
[1763639200814,7.03828828,142.08,142.06,6.52008415]
[1763639202235,7.03828828,142.08,142.07,4.17008415]
[1763639202429,7.03790293,142.09,142.07,4.17008415]
[1763639202737,7.71790293,142.09,142.07,4.17008415]
[1763639202917,7.71790293,142.09,142.07,2.66710148]
[1763639204609,24.630949,142.1,142.07,3.35710148]
[1763639204812,7.03729767,142.1,142.08,3.35710148]
[1763639205814,7.0368899,142.11,142.09,0.69]
[1763639206015,7.0368899,142.11,142.09,3.35710148]
[1763639206225,7.7168899,142.11,142.09,2.66710148]
[1763639206820,7.0368899,142.11,142.09,3.35710148]
[1763639207413,7.0368899,142.11,142.08,2.66710148]
[1763639207620,7.7168899,142.11,142.08,3.35710148]
[1763639212144,7.0368899,142.11,142.09,0.69]
[1763639212350,7.03630734,142.12,142.09,3.35710148]
[1763639212538,7.72630734,142.12,142.09,3.35710148]
[1763639215935,8.69594165,142.13,142.1,3.35710148]
[1763639216136,7.03594165,142.13,142.1,3.35710148]
[1763639216340,7.03594165,142.13,142.11,3.35710148]
[1763639216650,18.81096,142.14,142.11,3.35710148]
[1763639216651,7.0355088,142.14,142.11,3.35710148]
[1763639216856,7.0355088,142.14,142.12,0.69]
[1763639218050,21.1424098,142.17,142.13,2.66710148]
[1763639218364,0.69,142.16,142.13,2.66710148]
[1763639218771,0.69,142.16,142.12,12.05321739]
[1763639219267,7.72456181,142.16,142.13,0.69]
[1763639220548,0.69,142.15,142.12,12.05321739]
[1763639221471,7.72489203,142.15,142.12,5.01710148]
[1763639222463,9.70199351,142.15,142.12,1.66]
[1763639222662,7.72546255,142.14,142.12,1.66]
[1763639222864,0.69,142.14,142.12,1.66]
[1763639223081,0.2,142.17,142.13,0.69]
[1763639223380,0.2,142.17,142.15,2.66710148]
[1763639223538,0.2,142.17,142.13,7.72581228]
[1763639223737,0.2,142.17,142.15,2.66710148]
[1763639224134,0.2,142.17,142.16,3.35710148]
[1763639224363,0.2,142.17,142.16,0.69]
[1763639224558,0.2,142.17,142.15,5.01710148]